fUST/lending_fUST_20250702
["ID","MTS","AMOUNT","RATE_DAILY","PERIOD"]
[368893469,1751385810782,200.0,0.00024269,120]
[368893473,1751386027128,-161.01137716,0.00018546,2]
[368893491,1751386232823,-426.18,0.00018544,2]
[368893534,1751386238658,-773.82,0.00018544,2]
[368893536,1751386238669,-160.0,0.00018544,2]
[368893538,1751386238679,-121.78704147,0.00018545,2]
[368893540,1751386238691,-338.21295853,0.00018545,2]
[368893542,1751386238700,-460.0,0.00018545,2]
[368893545,1751386238716,-460.0,0.00018545,2]
[368893547,1751386238726,-460.0,0.00018545,2]
[368893549,1751386238736,-386.48307727,0.00018545,2]
[368893551,1751386238746,-460.0,0.00018545,2]
[368893553,1751386238755,-460.0,0.00018545,2]
[368893555,1751386238765,-639.22,0.00018545,2]
[368893557,1751386238774,-460.0,0.00018545,2]
[368893559,1751386238784,-460.0,0.00018545,2]
[368893561,1751386238795,-460.0,0.00018545,2]
[368893563,1751386238804,-6968.01862325,0.00018546,2]
[368893574,1751386238920,-4283.16338576,0.00018546,2]
[368893576,1751386238932,-5240.67776035,0.00018546,2]
[368893578,1751386238944,-3393.27706792,0.00018546,2]
[368893580,1751386238956,-2043.59729491,0.00018546,2]
[368893583,1751386238968,-843.4294,0.00018546,2]
[368893585,1751386238981,-1959.33086571,0.00018546,2]
[368893587,1751386238993,-7.49422494,0.00018546,2]
[368893589,1751386239003,-189.76176277,0.00018714,2]
[368893591,1751386239014,-239.92081839,0.00018813,2]
[368893594,1751386239031,-260.07918161,0.00018813,2]
[368893596,1751386239042,-161.35273464,0.00018813,2]
[368893598,1751386239052,-500.0,0.00018813,2]
[368893600,1751386239061,-169.28395839,0.00018813,2]
[368893602,1751386239073,-500.0,0.00018813,2]
[368893604,1751386239082,-500.0,0.00018813,2]
[368893606,1751386239092,-500.0,0.00018813,2]
[368893607,1751386239101,-500.0,0.00018813,2]
[368893608,1751386239111,-500.0,0.00018813,2]
[368893609,1751386239120,-31.4499698,0.00018813,2]
[368893610,1751386239132,-468.5500302,0.00018813,2]
[368893611,1751386239143,-500.0,0.00018813,2]
[368893612,1751386239153,-497.24539607,0.00018813,2]
[368893613,1751386239165,-2.75460393,0.00018813,2]
[368893615,1751386239175,-500.0,0.00018813,2]
[368893617,1751386239184,-1.49435764,0.00018813,2]
[368893618,1751386239197,-261.04510912,0.00018813,2]
[368893620,1751386239208,-237.46053324,0.00018813,2]
[368893622,1751386239218,-500.0,0.00018813,2]
[368893624,1751386239227,-500.0,0.00018813,2]
[368893626,1751386239236,-266.02885847,0.00018813,2]
[368893628,1751386239248,-233.97114153,0.00018813,2]
[368893630,1751386239258,-518.18750529,0.00018813,2]
[368893631,1751386239279,-500.0,0.00018813,2]
[368893633,1751386239294,-500.0,0.00018813,2]
[368893635,1751386239305,-500.0,0.00018813,2]
[368893637,1751386239315,-500.0,0.00018813,2]
[368893639,1751386239325,-500.0,0.00018813,2]
[368893640,1751386239335,-500.0,0.00018813,2]
[368893642,1751386239344,-500.0,0.00018813,2]
[368893643,1751386239354,-500.0,0.00018813,2]
[368893644,1751386239363,-500.0,0.00018813,2]
[368893645,1751386239373,-500.0,0.00018813,2]
[368893646,1751386239382,-500.0,0.00018813,2]
[368893647,1751386239392,-500.0,0.00018813,2]
[368893648,1751386239519,-243.83553263,0.00018813,2]
[368893649,1751386239529,-500.0,0.00018813,2]
[368893650,1751386239539,-500.0,0.00018813,2]
[368893651,1751386239549,-500.0,0.00018813,2]
[368893652,1751386239559,-500.0,0.00018813,2]
[368893653,1751386239569,-318.07070855,0.00018813,2]
[368893654,1751386239652,-181.92929145,0.00018813,2]
[368893655,1751386239663,-500.0,0.00018813,2]
[368893656,1751386239672,-500.0,0.00018813,2]
[368893657,1751386239682,-500.0,0.00018813,2]
[368893658,1751386239691,-500.0,0.00018813,2]
[368893659,1751386239701,-500.0,0.00018813,2]
[368893660,1751386239711,-411.31885303,0.00018814,2]
[368893661,1751386239720,-500.0,0.00018816,2]
[368893662,1751386239730,-345.34299054,0.00018816,2]
[368893663,1751386239741,-206.89,0.00018816,2]
[368893664,1751386239751,-460.0,0.00018816,2]
[368893665,1751386239760,-460.0,0.00018816,2]
[368893666,1751386239770,-444.91,0.00018816,2]
[368893667,1751386239780,-460.0,0.00018816,2]
[368893668,1751386239789,-460.0,0.00018816,2]
[368893669,1751386239799,-460.0,0.00018816,2]
[368893670,1751386239809,-460.0,0.00018816,2]
[368893671,1751386239819,-460.0,0.00018816,2]
[368893672,1751386239829,-460.0,0.00018816,2]
[368893673,1751386239838,-460.0,0.00018816,2]
[368893674,1751386239848,-460.0,0.00018816,2]
[368893675,1751386239858,-460.0,0.00018816,2]
[368893676,1751386239867,-460.0,0.00018816,2]
[368893677,1751386239877,-460.0,0.00018819,2]
[368893678,1751386239887,-460.0,0.00018819,2]
[368893679,1751386239897,-460.0,0.00018819,2]
[368893680,1751386239907,-460.0,0.00018819,2]
[368893681,1751386239917,-639.22,0.00018819,2]
[368893682,1751386239926,-460.0,0.00018819,2]
[368893683,1751386239936,-516.41886498,0.00018969,2]
[368893816,1751386243733,-460.0,0.00018545,2]
[368893819,1751386243743,-460.0,0.00018545,2]
[368893821,1751386243752,-460.0,0.00018819,2]
[368893822,1751386243762,-129.33974522,0.00018969,2]
[368893823,1751386243771,-151.19613437,0.00019,2]
[368893824,1751386243780,-442.378646,0.00019063,2]
[368893825,1751386243790,-460.0,0.0001909,2]
[368893826,1751386243800,-460.0,0.0001909,2]
[368893827,1751386243809,-460.0,0.0001909,2]
[368893828,1751386243819,-458.92999939,0.0001909,2]
[368893944,1751386247172,-1.07000061,0.0001909,2]
[368893946,1751386247182,-309.05823556,0.0001909,2]
[368893948,1751386247195,-160.66697619,0.0001909,2]
[368893950,1751386247204,-460.0,0.0001909,2]
[368893952,1751386247214,-460.0,0.00019093,2]
[368893954,1751386247225,-460.0,0.00019093,2]
[368893956,1751386247236,-460.0,0.00019093,2]
[368893958,1751386247246,-639.22,0.00019093,2]
[368893960,1751386247255,-460.0,0.00019093,2]
[368893962,1751386247265,-460.0,0.00019093,2]
[368893964,1751386247275,-187.999038,0.00019178,2]
[368893967,1751386247285,-460.0,0.00019364,2]
[368893969,1751386247294,-486.17,0.00019367,2]
[368893970,1751386247304,-460.0,0.00019367,2]
[368893972,1751386247314,-460.0,0.00019367,2]
[368893975,1751386247323,-639.22,0.00019367,2]
[368893977,1751386247334,-459.22,0.00019367,2]
[368893979,1751386247344,-263.42,0.00019638,2]
[368893981,1751386247354,-460.0,0.00019641,2]
[368893983,1751386247373,-460.0,0.00019641,2]
[368893986,1751386247388,-639.22,0.00019641,2]
[368893988,1751386247401,-460.0,0.00019649,2]
[368893991,1751386247414,-460.0,0.00019649,2]
[368893993,1751386247426,-263.39451942,0.00019649,2]
[368895225,1751386350692,244.078901,0.00013699,2]
[368895228,1751386862921,573.97890221,0.00024649,120]
[368895229,1751386890748,200.0,0.00024198,120]
[368895230,1751386985005,183.64516036,0.0001833,6]
[368895231,1751387064524,-168.8179925,0.00017346,2]
[368895232,1751387066039,-189.35706769,0.00017346,2]
[368895233,1751387068127,-151.1189796,0.00017346,2]
[368895234,1751387070798,-167.07347861,0.00017346,2]
[368895235,1751387072817,-193.96505387,0.00017346,2]
[368895236,1751387076506,189.35706769,0.000171,2]
[368895237,1751387078939,-185.38644206,0.00017346,2]
[368895246,1751387092084,379.35149593,0.000171,2]
[368895247,1751387108849,1196.35483964,0.000171,2]
[368895248,1751387142105,-202.0,0.00017345,2]
[368895249,1751387142127,-300.0,0.00017345,2]
[368895250,1751387142149,-300.0,0.00017345,2]
[368895251,1751387142172,-1200.0,0.00017345,2]
[368895252,1751387142195,-7018.74047449,0.00017346,2]
[368895254,1751387229097,-1200.0,0.00017345,2]
[368895255,1751387229119,-4133.02334817,0.00017346,2]
[368895256,1751387238095,-859.99026139,0.00017346,2]
[368895257,1751387240099,-754.57755737,0.00017346,2]
[368895268,1751387338281,6333.0,0.00017,2]
[368895272,1751387382193,231.874955,0.00013699,2]
[368895329,1751387432797,-626.96064959,0.00017346,2]
[368895331,1751387432810,-10450.98869466,0.00017346,2]
[368895333,1751387432819,-460.0,0.00017699,2]
[368895335,1751387432829,-460.0,0.00017699,2]
[368895337,1751387432839,-460.0,0.00017699,2]
[368895339,1751387432849,-460.0,0.00017699,2]
[368895340,1751387432858,-460.0,0.00017699,2]
[368895341,1751387432868,-460.0,0.00017699,2]
[368895342,1751387432878,-460.0,0.00017699,2]
[368895343,1751387432888,-460.0,0.00017699,2]
[368895344,1751387432897,-460.0,0.00017699,2]
[368895345,1751387432908,-168.55541547,0.00017699,2]
[368895346,1751387432917,-404.0174903,0.00017699,2]
[368895348,1751387432927,-460.0,0.00017699,2]
[368895349,1751387432937,-460.0,0.00017699,2]
[368895351,1751387432947,-460.0,0.00017699,2]
[368895352,1751387432957,-1201.36,0.00017699,2]
[368895353,1751387432966,-460.0,0.00017699,2]
[368895354,1751387432975,-460.0,0.00017699,2]
[368895355,1751387432985,-460.0,0.00017699,2]
[368895356,1751387432994,-460.0,0.00017699,2]
[368895357,1751387433004,-236.3345722,0.00017748,2]
[368895358,1751387433014,-461.25694131,0.00017853,2]
[368895359,1751387433024,-460.0,0.00017853,2]
[368895360,1751387433034,-460.0,0.00017853,2]
[368895361,1751387433044,-460.0,0.00017853,2]
[368895362,1751387433054,-460.0,0.00017853,2]
[368895363,1751387433065,-460.0,0.00017853,2]
[368895364,1751387433075,-460.0,0.00017853,2]
[368895365,1751387433085,-460.0,0.00017853,2]
[368895366,1751387433096,-460.0,0.00017853,2]
[368895367,1751387433105,-221.189323,0.00017854,2]
[368895368,1751387433115,-460.0,0.00017973,2]
[368895369,1751387433125,-460.0,0.00017973,2]
[368895370,1751387433136,-332.84948558,0.00017973,2]
[368895371,1751387433146,-460.0,0.00017973,2]
[368895372,1751387433157,-460.0,0.00017973,2]
[368895373,1751387433166,-147.87389599,0.00017973,2]
[368895374,1751387433179,-291.93487589,0.00017973,2]
[368895375,1751387433189,-403.07016795,0.00017973,2]
[368895376,1751387433201,-623.03935041,0.00017973,2]
[368895377,1751387433213,-175.25048164,0.00017973,2]
[368895378,1751387433223,-460.0,0.00017973,2]
[368895379,1751387433234,-460.0,0.00018127,2]
[368895380,1751387433244,-460.0,0.00018127,2]
[368895381,1751387433254,-313.18921736,0.00018127,2]
[368895382,1751387433264,-460.0,0.00018247,2]
[368895383,1751387433274,-460.0,0.00018247,2]
[368895384,1751387433284,-460.0,0.00018247,2]
[368895385,1751387433294,-454.67140191,0.00018247,2]
[368895386,1751387433306,-746.68859809,0.00018247,2]
[368895387,1751387433316,-460.0,0.00018247,2]
[368895388,1751387433327,-460.0,0.00018401,2]
[368895389,1751387433337,-168.59617546,0.00018439,2]
[368895390,1751387433347,-460.0,0.00018521,2]
[368895391,1751387433356,-3.35599236,0.00018521,2]
[368895392,1751387433368,-456.64400764,0.00018521,2]
[368895393,1751387433378,-460.0,0.00018521,2]
[368895394,1751387433388,-1201.36,0.00018521,2]
[368895395,1751387433398,-460.0,0.00018521,2]
[368895396,1751387433536,-151.0,0.0001853,2]
[368895397,1751387433547,-445.4,0.00018534,3]
[368895398,1751387433557,-500.0,0.00018539,2]
[368895399,1751387433571,-501.14972139,0.00018539,2]
[368895400,1751387433580,-500.0,0.00018539,2]
[368895401,1751387433589,-500.0,0.00018539,2]
[368895402,1751387433599,-500.0,0.00018539,2]
[368895403,1751387433609,-500.0,0.00018539,2]
[368895404,1751387433619,-500.0,0.00018539,2]
[368895405,1751387433629,-500.0,0.00018539,2]
[368895406,1751387433640,-500.0,0.00018539,2]
[368895407,1751387433650,-500.0,0.00018539,2]
[368895408,1751387433659,-424.07876103,0.00018539,2]
[368895409,1751387433669,-500.0,0.00018539,2]
[368895410,1751387433678,-500.0,0.00018539,2]
[368895411,1751387433688,-423.06209286,0.00018539,2]
[368895412,1751387433698,-500.0,0.00018539,2]
[368895413,1751387433708,-500.0,0.00018539,2]
[368895414,1751387433719,-500.0,0.00018539,2]
[368895415,1751387433728,-500.0,0.00018539,2]
[368895416,1751387433738,-500.0,0.00018539,2]
[368895417,1751387433748,-500.0,0.00018539,2]
[368895418,1751387433757,-500.0,0.00018539,2]
[368895419,1751387433767,-500.0,0.00018539,2]
[368895420,1751387433777,-618.04801221,0.00018539,2]
[368895421,1751387433787,-500.0,0.00018539,2]
[368895422,1751387433796,-500.0,0.00018539,2]
[368895423,1751387433806,-500.0,0.00018539,2]
[368895424,1751387433817,-377.99861311,0.00018539,2]
[368895425,1751387433827,-500.0,0.00018539,2]
[368895426,1751387433837,-500.0,0.00018539,2]
[368895427,1751387433847,-500.0,0.00018539,2]
[368895428,1751387433856,-500.0,0.00018539,2]
[368895429,1751387433866,-500.0,0.00018539,2]
[368895430,1751387433875,-500.0,0.00018539,2]
[368895431,1751387433885,-500.0,0.00018539,2]
[368895432,1751387433894,-500.0,0.00018539,2]
[368895433,1751387433903,-500.0,0.00018539,2]
[368895434,1751387433913,-500.0,0.00018539,2]
[368895435,1751387433922,-500.0,0.00018539,2]
[368895436,1751387433932,-500.0,0.00018539,2]
[368895437,1751387433942,-500.0,0.00018539,2]
[368895438,1751387433951,-500.0,0.00018539,2]
[368895439,1751387433961,-500.0,0.00018539,2]
[368895440,1751387433971,-509.09170383,0.00018539,2]
[368895441,1751387433981,-500.0,0.00018539,2]
[368895442,1751387433991,-500.0,0.00018539,2]
[368895443,1751387434000,-392.35521236,0.00018539,2]
[368895444,1751387434011,-500.0,0.00018539,2]
[368895445,1751387434022,-500.0,0.00018539,2]
[368895446,1751387434032,-339.80525143,0.00018539,2]
[368895447,1751387434042,-500.0,0.00018539,2]
[368895448,1751387434052,-500.0,0.00018539,2]
[368895449,1751387434063,-500.0,0.00018539,2]
[368895450,1751387434073,-621.22706352,0.00018539,2]
[368895451,1751387434083,-500.0,0.00018539,2]
[368895452,1751387434094,-500.0,0.00018539,2]
[368895453,1751387434104,-500.0,0.00018539,2]
[368895454,1751387434114,-286.50625158,0.00018539,2]
[368895455,1751387434125,-500.0,0.00018539,2]
[368895456,1751387434135,-500.0,0.00018539,2]
[368895457,1751387434145,-500.0,0.00018539,2]
[368895458,1751387434156,-500.0,0.00018539,2]
[368895459,1751387434166,-500.0,0.00018539,2]
[368895460,1751387434176,-500.0,0.00018539,2]
[368895461,1751387434186,-500.0,0.00018539,2]
[368895462,1751387434196,-500.0,0.00018539,2]
[368895463,1751387434207,-500.0,0.00018539,2]
[368895464,1751387434217,-500.0,0.00018539,2]
[368895465,1751387434227,-500.0,0.00018539,2]
[368895466,1751387434237,-500.0,0.00018539,2]
[368895467,1751387434248,-500.0,0.00018539,2]
[368895468,1751387434257,-500.0,0.00018539,2]
[368895469,1751387434267,-500.0,0.00018539,2]
[368895470,1751387434279,-500.0,0.00018539,2]
[368895471,1751387434289,-500.0,0.00018539,2]
[368895472,1751387434299,-500.0,0.00018539,2]
[368895473,1751387434308,-500.0,0.00018539,2]
[368895474,1751387434317,-500.0,0.00018539,2]
[368895475,1751387434327,-500.0,0.00018539,2]
[368895476,1751387434336,-500.0,0.00018539,2]
[368895477,1751387434346,-425.25832189,0.00018539,2]
[368895478,1751387434355,-500.0,0.00018539,2]
[368895479,1751387434365,-500.0,0.00018539,2]
[368895480,1751387434374,-500.0,0.00018539,2]
[368895481,1751387434383,-500.0,0.00018539,2]
[368895482,1751387434393,-500.0,0.00018539,2]
[368895483,1751387434403,-500.0,0.00018539,2]
[368895484,1751387434412,-500.0,0.00018539,2]
[368895485,1751387434422,-500.0,0.00018539,2]
[368895486,1751387434432,-500.0,0.00018539,2]
[368895487,1751387434442,-500.0,0.00018539,2]
[368895488,1751387434451,-500.0,0.00018539,2]
[368895489,1751387434460,-500.0,0.00018539,2]
[368895490,1751387434470,-500.0,0.00018539,2]
[368895491,1751387434479,-500.0,0.00018539,2]
[368895492,1751387434489,-500.0,0.00018539,2]
[368895493,1751387434498,-500.0,0.00018539,2]
[368895494,1751387434508,-500.0,0.00018539,2]
[368895495,1751387434518,-500.0,0.00018539,2]
[368895496,1751387434528,-500.0,0.00018539,2]
[368895497,1751387434538,-500.0,0.00018539,2]
[368895498,1751387434548,-500.0,0.00018539,2]
[368895499,1751387434557,-500.0,0.00018539,2]
[368895500,1751387434569,-500.0,0.00018539,2]
[368895501,1751387434578,-500.0,0.00018539,2]
[368895502,1751387434589,-500.0,0.00018539,2]
[368895503,1751387434598,-340.26740229,0.00018539,2]
[368895504,1751387434610,-500.0,0.00018539,2]
[368895505,1751387434620,-500.0,0.00018539,2]
[368895506,1751387434630,-500.0,0.00018539,2]
[368895507,1751387434640,-500.0,0.00018539,2]
[368895508,1751387434649,-500.0,0.00018539,2]
[368895509,1751387434659,-500.0,0.00018539,2]
[368895510,1751387434669,-500.0,0.00018539,2]
[368895511,1751387434678,-500.0,0.00018539,2]
[368895512,1751387434688,-500.0,0.00018539,2]
[368895513,1751387434698,-500.0,0.00018539,2]
[368895514,1751387434707,-129.46149883,0.00018539,2]
[368895519,1751387438656,-460.0,0.00017699,2]
[368895521,1751387438692,-1487.46,0.00017699,2]
[368895523,1751387438703,-1487.46,0.00017973,2]
[368895524,1751387438712,-1487.46,0.00018247,2]
[368895526,1751387438722,-370.53850117,0.00018539,2]
[368895528,1751387438731,-500.0,0.00018539,2]
[368895529,1751387438740,-500.0,0.00018539,2]
[368895531,1751387438750,-500.0,0.00018539,2]
[368895532,1751387438759,-500.0,0.00018539,2]
[368895533,1751387438768,-500.0,0.00018539,2]
[368895535,1751387438778,-500.0,0.00018539,2]
[368895537,1751387438787,-500.0,0.00018539,2]
[368895539,1751387438797,-500.0,0.00018539,2]
[368895541,1751387438808,-476.9972947,0.00018539,2]
[368895543,1751387438824,-23.0027053,0.00018539,2]
[368895545,1751387438833,-500.0,0.00018539,2]
[368895547,1751387438843,-500.0,0.00018539,2]
[368895549,1751387438853,-500.0,0.00018539,2]
[368895551,1751387438863,-243.69659802,0.00018539,2]
[368895553,1751387438879,-256.30340198,0.00018539,2]
[368895555,1751387438888,-500.0,0.00018539,2]
[368895557,1751387438897,-500.0,0.00018539,2]
[368895558,1751387438907,-500.0,0.00018539,2]
[368895559,1751387438916,-500.0,0.00018539,2]
[368895560,1751387438926,-227.23321527,0.00018539,2]
[368895561,1751387438936,-500.0,0.00018539,2]
[368895562,1751387438946,-500.0,0.00018539,2]
[368895563,1751387438955,-500.0,0.00018539,2]
[368895564,1751387438965,-500.0,0.00018539,2]
[368895565,1751387438975,-500.0,0.00018539,2]
[368895566,1751387438985,-365.69644475,0.00018539,2]
[368895612,1751387440926,-431.8799351,0.00018521,2]
[368895614,1751387440938,-1055.5800649,0.00018521,2]
[368895616,1751387440948,-3.8999351,0.00018539,2]
[368895618,1751387440963,-130.40362015,0.00018539,2]
[368895621,1751387440974,-500.0,0.00018539,2]
[368895623,1751387440984,-354.43637985,0.00018539,2]
[368895625,1751387440996,-145.56362015,0.00018539,2]
[368895627,1751387441006,-550.0,0.00018539,2]
[368895629,1751387441015,-500.0,0.00018539,2]
[368895631,1751387441025,-500.0,0.00018539,2]
[368895633,1751387441034,-500.0,0.00018539,2]
[368895635,1751387441044,-460.0,0.00018542,2]
[368895637,1751387441053,-460.0,0.00018542,2]
[368895639,1751387441062,-460.0,0.00018542,2]
[368895641,1751387441071,-460.0,0.00018542,2]
[368895643,1751387441080,-460.0,0.00018542,2]
[368895645,1751387441090,-460.0,0.00018542,2]
[368895647,1751387441099,-460.0,0.00018542,2]
[368895650,1751387441109,-500.0,0.00018542,2]
[368895652,1751387441118,-500.0,0.00018542,2]
[368895654,1751387441128,-500.0,0.00018542,2]
[368895656,1751387441137,-279.94918684,0.00018542,2]
[368895658,1751387441147,-460.0,0.00018542,2]
[368895659,1751387441156,-460.0,0.00018542,2]
[368895661,1751387441166,-460.0,0.00018542,2]
[368895663,1751387441176,-1632.71,0.00018542,2]
[368895665,1751387441185,-6.98580865,0.00018542,2]
[368895668,1751387441198,-453.01419135,0.00018542,2]
[368895670,1751387441210,-460.0,0.00018542,2]
[368895672,1751387441220,-460.0,0.00018542,2]
[368895674,1751387441230,-460.0,0.00018542,2]
[368895676,1751387441241,-460.0,0.00018542,2]
[368895678,1751387441250,-460.0,0.00018542,2]
[368895680,1751387441260,-1908.02,0.00018542,2]
[368895682,1751387441269,-1545.3,0.00018542,2]
[368895684,1751387441279,-1651.79,0.00018542,2]
[368895686,1751387441288,-460.0,0.00018542,2]
[368895688,1751387441298,-460.0,0.00018542,2]
[368895690,1751387441308,-1040.31,0.00018542,2]
[368895692,1751387441318,-460.0,0.00018542,2]
[368895694,1751387441327,-460.0,0.00018542,2]
[368895696,1751387441337,-460.0,0.00018542,2]
[368895698,1751387441346,-460.0,0.00018542,2]
[368895700,1751387441356,-460.0,0.00018542,2]
[368895702,1751387441365,-460.0,0.00018542,2]
[368895716,1751387441484,-460.0,0.00018542,2]
[368895718,1751387441495,-460.0,0.00018542,2]
[368895720,1751387441506,-809.71,0.00018542,2]
[368895722,1751387441516,-500.0,0.00018542,2]
[368895724,1751387441525,-500.0,0.00018542,2]
[368895726,1751387441535,-460.0,0.00018543,2]
[368895728,1751387441544,-460.0,0.00018543,2]
[368895730,1751387441554,-460.0,0.00018543,2]
[368895732,1751387441564,-460.0,0.00018543,2]
[368895734,1751387441575,-460.0,0.00018543,2]
[368895736,1751387441584,-460.0,0.00018543,2]
[368895738,1751387441593,-460.0,0.00018543,2]
[368895740,1751387441604,-460.0,0.00018543,2]
[368895742,1751387441615,-460.0,0.00018543,2]
[368895744,1751387441624,-460.0,0.00018543,2]
[368895746,1751387441633,-460.0,0.00018543,2]
[368895748,1751387441644,-460.53687793,0.00018543,2]
[368895750,1751387441653,-452.64615683,0.00018543,2]
[368895752,1751387441663,-440.49910396,0.00018543,2]
[368895754,1751387441672,-460.0,0.00018543,2]
[368895756,1751387441682,-460.0,0.00018543,2]
[368895758,1751387441692,-300.0,0.00018544,2]
[368895760,1751387441701,-460.0,0.00018544,2]
[368895762,1751387441711,-500.0,0.00018544,2]
[368895764,1751387441721,-501.03902153,0.00018544,2]
[368895766,1751387441731,-460.0,0.00018544,2]
[368895768,1751387441740,-569.68011724,0.00018544,2]
[368895770,1751387441750,-460.0,0.00018544,2]
[368895772,1751387441759,-460.0,0.00018544,2]
[368895774,1751387441769,-460.0,0.00018544,2]
[368895776,1751387441778,-460.0,0.00018544,2]
[368895778,1751387441787,-460.0,0.00018544,2]
[368895780,1751387441797,-460.0,0.00018544,2]
[368895782,1751387441806,-460.0,0.00018544,2]
[368895784,1751387441815,-512.99667405,0.00018544,2]
[368895786,1751387441825,-460.0,0.00018544,2]
[368895788,1751387441834,-460.0,0.00018544,2]
[368895790,1751387441843,-500.0,0.00018544,2]
[368895792,1751387441852,-460.0,0.00018544,2]
[368895794,1751387441861,-460.0,0.00018544,2]
[368895796,1751387441871,-460.0,0.00018544,2]
[368895798,1751387441880,-460.0,0.00018544,2]
[368895800,1751387441889,-460.0,0.00018544,2]
[368895801,1751387441901,-389.29355504,0.00018544,2]
[368895803,1751387441910,-460.0,0.00018544,2]
[368895805,1751387441919,-460.0,0.00018544,2]
[368895807,1751387441928,-460.0,0.00018544,2]
[368895809,1751387441938,-462.83548451,0.00018544,2]
[368895811,1751387441947,-460.0,0.00018544,2]
[368895813,1751387441957,-460.0,0.00018544,2]
[368895815,1751387441967,-460.0,0.00018544,2]
[368895817,1751387441976,-460.0,0.00018544,2]
[368895819,1751387441985,-460.0,0.00018544,2]
[368895822,1751387441995,-460.0,0.00018544,2]
[368895824,1751387442006,-560.66925553,0.00018544,2]
[368895826,1751387442015,-460.0,0.00018544,2]
[368895828,1751387442024,-500.0,0.00018544,2]
[368895830,1751387442034,-500.0,0.00018544,2]
[368895831,1751387442043,-460.0,0.00018544,2]
[368895833,1751387442053,-304.75482169,0.00018544,2]
[368895835,1751387442062,-460.0,0.00018544,2]
[368895837,1751387442072,-460.0,0.00018544,2]
[368895839,1751387442081,-460.0,0.00018544,2]
[368895841,1751387442090,-460.0,0.00018544,2]
[368895843,1751387442100,-460.0,0.00018544,2]
[368895845,1751387442109,-460.0,0.00018544,2]
[368895847,1751387442119,-460.0,0.00018544,2]
[368895849,1751387442128,-460.0,0.00018544,2]
[368895852,1751387442138,-460.0,0.00018544,2]
[368895854,1751387442148,-460.0,0.00018544,2]
[368895856,1751387442158,-106.08360884,0.00018544,2]
[368895858,1751387442171,-353.91639116,0.00018544,2]
[368895860,1751387442181,-460.0,0.00018544,2]
[368895862,1751387442191,-460.0,0.00018544,2]
[368895864,1751387442200,-460.0,0.00018544,2]
[368895866,1751387442210,-460.0,0.00018544,2]
[368895868,1751387442220,-0.26329556,0.00018544,2]
[368895870,1751387442231,-359.50100004,0.00018544,2]
[368895873,1751387442243,-100.2357044,0.00018544,2]
[368895875,1751387442252,-460.0,0.00018544,2]
[368895877,1751387442262,-460.0,0.00018544,2]
[368895878,1751387442271,-254.514641,0.00018544,2]
[368895880,1751387442280,-460.0,0.00018544,2]
[368895883,1751387442290,-460.0,0.00018544,2]
[368895884,1751387442300,-460.0,0.00018544,2]
[368895886,1751387442309,-127.19061495,0.00018544,2]
[368895889,1751387442322,-366.0670543,0.00018544,2]
[368895891,1751387442337,-107.37233075,0.00018544,2]
[368895893,1751387442347,-460.0,0.00018544,2]